Cogmind - Beta 13 @@@ ROGUE MODE // 2024.02.27 @ 19:55:57 Player: Epsilon Result: Destroyed by Y-54 Guardian with Gatling Laser Performance ------------- Evolutions (0) 0 Regions Visited (3) 600 Robots Destroyed (33) 165 Value Destroyed (855) 855 Prototype IDs (10) 200 Alien Tech Used (0) 0 Bonus (0) 0 TOTAL SCORE: 1820 Bonus ------- None Cogmind --------- Core Integrity 0/250 Matter 210/300 Energy 28/100 System Corruption 0% Temperature Warm (128) Movement Walking (130) Location -7/Recycling Parts ------- > --- POWER (1) -------- (None) > --- PROPULSION (2) --- Cargo Legs > --- UTILITY (2+1) ---- Scrap Engine Large Storage Unit (+) > --- WEAPON (2) ------- Subdweller Laser Subdweller Laser > --- INVENTORY (15) --- Subdweller Power Source Subdweller Power Source Improved Heat Sink Light Assault Rifle Peak State ------------ > --- POWER ------------ (None) > --- PROPULSION ------- Cargo Legs > --- UTILITY ---------- Scrap Engine Large Storage Unit Hacking Suite > --- WEAPON ----------- Subdweller Laser Slug Cannon > --- INVENTORY -------- Subdweller Power Source Subdweller Power Source Improved Heat Sink Subdweller Laser Light Assault Rifle [Rating: 43] Favorites ----------- Power Light Nuclear Core Engine Ion Engine Power Core Light Nuclear Core Propulsion Light Treads Treads Light Treads Leg Cargo Legs Utility Large Storage Unit Device Scrap Engine Storage Large Storage Unit Hackware Hacking Suite Protection Core Shielding Weapon Light Assault Rifle Energy Gun Subdweller Laser Ballistic Gun Light Assault Rifle Ballistic Cannon Slug Cannon Special Weapon Mining Laser Build | -11 -10 -10 -7 ------- Run | Yrd Mat Sub Rec Slots Evolved . | . . . . Power . | . . . . Propulsion . | . . . . Utility . | . . . . Weapon . | . . . . Parts Attached 38 | 6 15 13 4 Power 4 | 1 2 1 . Engine 2 | 1 1 . . Core 2 | . 1 1 . Reactor . | . . . . Propulsion 7 | 2 3 2 . Treads 6 | 2 3 1 . Leg 1 | . . 1 . Wheel . | . . . . Hover . | . . . . Flight . | . . . . Utility 10 | 1 5 2 2 Device 2 | . 1 . 1 Storage 4 | 1 2 1 . Processor . | . . . . Hackware 1 | . . . 1 Protection 3 | . 2 1 . Artifact . | . . . . Weapon 17 | 2 5 8 2 Energy Gun 3 | . . 1 2 Energy Cannon . | . . . . Ballistic Gun 10 | 2 4 4 . Ballistic Cannon 3 | . . 3 . Launcher . | . . . . Special Weapon 1 | . 1 . . Impact Weapon . | . . . . Slashing Weapon . | . . . . Piercing Weapon . | . . . . Special Melee Weapon . | . . . . Unidentified Prototypes . | . . . . Parts Lost 7 | . 1 5 1 Power 1 | . . 1 . Propulsion 2 | . 1 1 . Utility 1 | . . 1 . Weapon 3 | . . 2 1 Highest Loss Streak 2 | . 1 2 1 To Critical Strikes . | . . . . Average Slot Usage (%) 83 | . 98 68 61 Engine 2 | . 4 . . Core 9 | . 8 12 . Treads 19 | . 27 11 . Leg 3 | . . 6 11 Device 1 | . 1 . 11 Storage 10 | . 14 6 11 Protection 9 | . 11 7 . Energy Gun 2 | . . 5 4 Ballistic Gun 19 | . 27 10 6 Ballistic Cannon 4 | . . 9 11 Naked Turns . | . . . . Heaviest Build 50 | 11 49 50 32 Greatest Support 55 | 40 40 55 55 Greatest Overweight (x) 1 | . 1 1 . Average Overweight (x) . | . . . . Largest Inventory Capacity 20 | 8 20 15 15 Average Capacity 11 | 7 12 10 15 Most Carried 14 | 6 12 14 5 Average Carried 6 | 4 8 5 4 Final Capacity 15 | 8 15 15 15 Final Carried 12 | 6 12 5 4 Scrap Engine Consumption 5 | . . . 5 Class Distribution -------------------- 87% | Mutant 12% | Subdweller-Mutant Dominant Class ---------------- Mutant | -10/Materials Mutant | -10/Subcaves Mutant | -7/Recycling Resources | -11 -10 -10 -7 ----------- Run | Yrd Mat Sub Rec Matter Collected 1098 | 304 382 359 53 Remotely . | . . . . Salvage Created 1048 | 105 581 270 92 Parts 58 | 3 34 18 3 Haulers Intercepted 2 | . 2 . . Recyclers Shooed . | . . . . Parts Field Recycled . | . . . . Retrieved Matter . | . . . . Parts Self-Destructed 14 | . . 14 . Prevented . | . . . . Kills | -11 -10 -10 -7 ------- Run | Yrd Mat Sub Rec Combat Hostiles Destroyed 23 | . 9 12 2 Guns 13 | . 9 3 1 Cannons 10 | . . 9 1 Classes Destroyed 11 | 2 6 2 1 Worker 2 | . 2 . . Builder 1 | . 1 . . Tunneler 1 | 1 . . . Hauler 2 | . 2 . . Recycler 1 | 1 . . . Operator 1 | . 1 . . Watcher 2 | . 2 . . Swarmer 5 | . . 5 . Grunt 9 | . 9 . . Sentry 2 | . . . 2 Subdweller 7 | . . 7 . Best Kill Streak 5 | 1 5 3 1 Combat Bots Only 5 | . 5 3 1 Max Kills in Single Turn 1 | 1 1 1 1 Gunslinging . | . . . . Exploded . | . . . . Melee . | . . . . Uniques/NPCs Destroyed . | . . . . Combat | -11 -10 -10 -7 -------- Run | Yrd Mat Sub Rec Hostile Shots Fired 226 | . 53 98 75 Missed 74 | . 15 36 23 Damage Taken 1801 | . 481 938 382 Core 256 | . 100 83 73 Absorbed by Shields . | . . . . Redirected to Shielding 12 | . 12 . . Core Remaining (%) 100 | 100 . . . Volleys Fired 137 | 11 65 50 11 Largest 2 | 2 2 2 2 Hottest 120 | 40 100 90 120 Shots Fired 266 | 22 127 95 22 Gun 213 | 22 124 55 12 Cannon 50 | . . 40 10 Launcher . | . . . . Special 3 | . 3 . . Kinetic 244 | 22 124 85 13 Thermal 22 | . 3 10 9 Explosive . | . . . . Electromagnetic . | . . . . Robot Hit Streak 11 | 4 8 11 6 Robot Miss Streak 4 | 2 4 2 3 Penetration Max . | . . . . Secondary Targets . | . . . . Shots Hit Robots 171 | 14 82 61 14 Core Hits 62 | 4 30 22 6 Critical Kills 1 | . 1 . . Critical Parts Destroyed 2 | . 2 . . Critical Strikes 4 | . 3 1 . Destroy 3 | . 3 . . Blast 1 | . . 1 . Melee Attacks . | . . . . Impact . | . . . . Slashing . | . . . . Piercing . | . . . . Sneak Attacks . | . . . . Combat Hostiles . | . . . . Follow-up Attacks . | . . . . Damage Inflicted 2563 | 162 895 1153 353 Guns 1781 | 162 883 617 119 Cannons 770 | . . 536 234 Explosions . | . . . . Melee . | . . . . Ramming 12 | . 12 . . Kinetic 2344 | 162 883 1049 250 Thermal 207 | . . 104 103 Explosive . | . . . . Electromagnetic . | . . . . Impact . | . . . . Slashing . | . . . . Piercing . | . . . . Highest Corruption . | . . . . Average Corruption . | . . . . Corruption Purged . | . . . . Corruption Blocked . | . . . . Overload Shots . | . . . . Overflow Damage 8 | . . 8 . Projectiles 8 | . . 8 . Explosions . | . . . . Melee . | . . . . Knockbacks 7 | . . 6 1 Impact . | . . . . Kinetic 7 | . . 6 1 Secondary . | . . . . Self-Inflicted Damage . | . . . . Shots . | . . . . Rammed 3 | . 3 . . Targets Rammed 4 | . 4 . . Kicked . | . . . . Crushed 1 | . 1 . . Highest Temperature 150 | . 107 2 150 Average Temperature 34 | . 18 2 66 Received Heat Transfer 621 | . 291 222 108 Siege Activations . | . . . . Robots Corrupted . | . . . . Combat Hostiles . | . . . . Parts Fried . | . . . . Impact Corruptions . | . . . . Robots Melted . | . . . . Combat Hostiles . | . . . . Parts Melted 1 | . . 1 . Heat Transferred 250 | . . 125 125 Parts Sabotaged . | . . . . Parts Stolen . | . . . . Parts Stripped . | . . . . Power Chain Reactions . | . . . . Alert | -11 -10 -10 -7 ------- Run | Yrd Mat Sub Rec Peak Influence 247 | 10 247 . 245 Initial 201 | . 6 . 201 Average 109 | 2 106 . 228 Maximum Alert Level 1 | . 1 . 1 Low Security (%) 78 | 100 86 . . Level 1 21 | . 13 . 100 Level 2 . | . . . . Level 3 . | . . . . Level 4 . | . . . . Level 5 . | . . . . High Security . | . . . . Max Security . | . . . . Squads Dispatched 2 | . 2 . . Investigation 1 | . 1 . . Extermination . | . . . . Reinforcement 1 | . 1 . . Assault . | . . . . Garrison . | . . . . Intercept . | . . . . Searches Triggered . | . . . . Construction Impeded . | . . . . Haulers Reinforced . | . . . . Active Scanning Responses . | . . . . Cargo Convoy Interrupts . | . . . . Stealth | -11 -10 -10 -7 --------- Run | Yrd Mat Sub Rec Distress Signals . | . . . . Communications Jammed . | . . . . Distress Signals . | . . . . Times Spotted 71 | . 27 41 3 Peak Tracking Total 4 | . 4 4 1 Tactical Retreats 9 | . 6 3 . Traps | -11 -10 -10 -7 ------- Run | Yrd Mat Sub Rec Traps Triggered 5 | . 4 1 . Indirectly . | . . . . Trap Hack Attempts . | . . . . Triggered . | . . . . Disarmed . | . . . . Reprogrammed 7 | . 7 . . Reused 1 | . 1 . . Traps Extracted . | . . . . Installed . | . . . . Triggered 1 | . 1 . . Machines | -11 -10 -10 -7 ---------- Run | Yrd Mat Sub Rec Machines Disabled 2 | . . 2 . Max in Single Turn 1 | . . 1 . Machines Repaired . | . . . . Machines Dismantled . | . . . . Machines Sabotaged . | . . . . Overloaded Fab Kills . | . . . . Hacking | -11 -10 -10 -7 --------- Run | Yrd Mat Sub Rec Machines Accessed 11 | . 6 2 3 Terminals 8 | . 6 . 2 Fabricators . | . . . . Repair Stations . | . . . . Recycling Units 1 | . . . 1 Scanalyzers . | . . . . Garrison Access . | . . . . Total Hacks 34 | . 17 13 4 Successful 18 | . 5 13 . Failed 16 | . 12 . 4 Catastrophic 6 | . 3 . 3 Database Lockouts . | . . . . Manual 12 | . 9 . 3 Terminals 20 | . 17 . 3 Fabricators . | . . . . Repair Stations . | . . . . Recycling Units 1 | . . . 1 Scanalyzers . | . . . . Garrison Access . | . . . . Terminal Hacks 17 | . 4 13 . Record 12 | . . 12 . Locate Traps 1 | . 1 . . Reprogram Traps 2 | . 2 . . Hauler Manifests 1 | . 1 . . Derelict Proto ID Bank 1 | . . 1 . Fabricator Hacks . | . . . . Repair Station Hacks . | . . . . Recycling Unit Hacks . | . . . . Scanalyzer . | . . . . Garrison Access Hacks . | . . . . Unauthorized Hacks 1 | . 1 . . Terminals 1 | . 1 . . Operators 1 | . 1 . . Fabricators . | . . . . Repair Stations . | . . . . Recycling Units . | . . . . Scanalyzers . | . . . . Garrison Access . | . . . . Data Cores Recovered . | . . . . Used . | . . . . Hacking Detections 9 | . 6 . 3 Full Trace Events . | . . . . Feedback Events . | . . . . Feedback Blocked . | . . . . Robot Schematics Acquired . | . . . . Robots Built . | . . . . Authchips . | . . . . Time . | . . . . Total Robot Build Rating . | . . . . Part Schematics Acquired . | . . . . Parts Built . | . . . . Authchips . | . . . . Time . | . . . . Total Part Build Rating . | . . . . Parts Repaired . | . . . . Time . | . . . . Parts Recycled . | . . . . Recycled Matter . | . . . . Retrieved Matter . | . . . . Retrieved Components . | . . . . Parts Scanalyzed . | . . . . Part Schematics Acquired . | . . . . Parts Damaged . | . . . . Bothacking | -11 -10 -10 -7 ------------ Run | Yrd Mat Sub Rec Used RIF Installer . | . . . . Robots Hacked . | . . . . Non-combat . | . . . . Combat . | . . . . Robot Hacks Applied . | . . . . Relay Couplers Released . | . . . . Fabnet Peak Effective % . | . . . . Robots Rewired . | . . . . Allies Hacked . | . . . . Hacks Repelled . | . . . . Allies | -11 -10 -10 -7 -------- Run | Yrd Mat Sub Rec Total Allies . | . . . . Largest Group . | . . . . Highest-Rated Group . | . . . . Highest-Rated Ally . | . . . . Total Orders . | . . . . Ally Attacks . | . . . . Total Damage . | . . . . Kills . | . . . . Allies Corrupted . | . . . . Allies Melted . | . . . . Intel | -11 -10 -10 -7 ------- Run | Yrd Mat Sub Rec Robot Analysis Total . | . . . . Derelict Logs Recovered 1 | . . 1 . Drone Launches . | . . . . Drone Recoveries . | . . . . Exploration | -11 -10 -10 -7 ------------- Run | Yrd Mat Sub Rec Turns Passed 3144 | 184 1564 1183 213 Spaces Moved 1681 | 91 767 690 133 Core 6 | 6 . . . Treads 1112 | 85 767 260 . Legs 563 | . . 430 133 Wheels . | . . . . Hover . | . . . . Flight . | . . . . Fastest Speed 50 | 50 160 130 130 Average Speed 153 | 152 166 143 130 Slowest Speed 240 | 160 240 240 130 Overloaded Moves . | . . . . Propulsion Burnouts . | . . . . Robots Hopped . | . . . . Cave-ins Triggered . | . . . . Exploration Rate (%) 41 | 6 97 36 26 Regions Visited 3 Branch Regions 2 Pre-discovered Areas 1 | . . 1 . Known Exits Taken . | . . . . Unknown Exits Taken 3 | 1 1 1 . Scrap Searched 8 | . . 8 . Spaces Dug 3 | . 3 . . Terrain Destroyed 10 | . 3 3 4 Melee . | . . . . Projectile 10 | . 3 3 4 AOE . | . . . . Terrain Rammed . | . . . . Walls Destroyed . | . . . . Machines Disabled . | . . . . Actions | -11 -10 -10 -7 --------- Run | Yrd Mat Sub Rec Total 1986 | 113 927 792 154 Wait 71 | . 58 9 4 Move 1678 | 90 766 689 133 Hop . | . . . . Pick Up 32 | 6 12 13 1 Fast Attach 18 | 6 7 4 1 Attach 8 | . 2 4 2 Detach 2 | . . 1 1 Swap 12 | . 6 5 1 Drop 21 | . 7 14 . Fire 137 | 11 65 50 11 Melee . | . . . . Ram . | . . . . Kick . | . . . . Crush 4 | . 4 . . Escape Stasis . | . . . . Rewire . | . . . . Trap . | . . . . Miscellaneous 3 | . . 3 . Route ------- -11/Scrapyard -10/Materials (discovered 6 exits: [*Mat x3] / [*Min x2] / *Sub) -10/Subcaves -7/Recycling History --------- Turn | Location | Event 8 | -11/Scrapyard | Discovered new exit (range 15) 185 | -11/Scrapyard | Entered Materials 303 | -10/Materials | Build established: Mutant 389 | -10/Materials | Discovered new exit (range 13) 904 | -10/Materials | Discovered new exit (range 16) 1301 | -10/Materials | Discovered new exit (range 5) 1407 | -10/Materials | Discovered new exit (range 11) 1437 | -10/Materials | Discovered new exit (range 16) 1742 | -10/Materials | Discovered new exit (range 5) 1749 | -10/Materials | Entered Subcaves 1839 | -10/Subcaves | Ambushed by swarm of Subdwellers 1918 | -10/Subcaves | Learned location of Zion (-6) 1918 | -10/Subcaves | Met a Zionite searching for "candidates" 1983 | -10/Subcaves | Visited 4L-MR0's lab 2103 | -10/Subcaves | Disturbed a concealed Subdweller 2132 | -10/Subcaves | Core integrity fell below 50% 2185 | -10/Subcaves | Build established: Subdweller-Mutant 2271 | -10/Subcaves | Found Cargo Legs 2272 | -10/Subcaves | Attached Cargo Legs, gained temporary slots: Utility x2 2523 | -10/Subcaves | Visited Clippyterm 2527 | -10/Subcaves | Learned Research machine intel 2538 | -10/Subcaves | A swath of the cavern ceiling suddenly collapsed 2553 | -10/Subcaves | Build established: Mutant 2781 | -10/Subcaves | Learned Materials stockpile data 2910 | -10/Subcaves | Discovered new exit (range 16) 2932 | -10/Subcaves | Entered Recycling 2935 | -7/Recycling | Found Scrap Engine 2951 | -7/Recycling | Core integrity fell below 20% 3145 | -7/Recycling | Destroyed by Y-54 Guardian with Gatling Laser Last Messages --------------- 02961_ Acquired 53 matter. 02961_ U-05 Engineer builds a Wall. 02976_ R-06 Scavenger collects Imp. Heat Sink. 02986_ Connecting with Recycling Unit... 02986_ Current location identified: Recycling 03015_ Connecting with Terminal... 03039_ Acquired Imp. Heat Sink. 03067_ Y-54 Guardian springs to life. 03077_ Y-54 Guardian destroyed. 03078_ R-06 Scavenger collects Imp. Heat Sink. 03089_ U-05 Engineer builds a Wall. 03091_ Scrap Engine consumes Imp. Deuterium Engine. 03092_ Scrap Engine consumes Broken Imp. Deuterium Engine. 03094_ Scrap Engine consumes Imp. Deuterium Engine. 03107_ Connecting with Terminal... 03107_ Discarded Hacking Suite. 03108_ Temporary Utility slot lost. 03134_ Y-54 Guardian springs to life. 03135_ R-06 Scavenger knocked back. 03142_ Slug Cannon destroyed. Map ----- +----------------------------------------------------+ | ?????????????????????????????????????????????????? | | ?????????????????????????????????????????????????? | | ?????????????????????????????????????????????????? | | ?????????????????????????????????????????????????? | | ?????????????????????????????????????????????????? | | ?????????????????????????????????????????????????? | | ?????????????????????????????????????????????????? | | ?????????????????????????????????????????????????? | | ?????????????????????????????????????????????????? | | ?????????????????????????????????????????????????? | | ?????????????????????????????????????????????????? | | ?????????????????????????????????????????????????? | | ?????????????????????????????????????????????????? | | ?????????????????????????????????????????????????? | | ?????????????????????????????????????????????????? | | ?????????????????????????????????????????????????? | | ?????????????????????????????????????????????????? | | ???????????????????????????????#?????????????????? | | ?????????????????????????????? #?????????????????? | | ???????????????????######????? #??####???######### | | ???????????????????# """ ???? #??#T"#???# """"" | | ???????????????????#""T""????] ??## "###?# ""T"" | | ??????????? ######"" ""####+#### #?# | | ?????????? r #?# """"" | | ?????????? r u% #?# """"" | | ?????????? r u Y@ #?# """"" | | ?????????????????##+###%## ### | | ?????????????????????????# % ## | | ?????????????????????????# %######+#### | | ?????????????????????????# % | | ???????????????????????### | | ???????????????????????# | | ???????????????????????# | | ???????????????????????# | | ???????????????????????### | | ?????????????????????????# ##############+#### | | ????????????????????????####+########??# ## | | ????????????????????????# #??# """ #? | | ????????????????????????# "T" #??# """ #? | | ????????????????????????# #??# """ #? | | ????????????????????????# #??# #? | | ????????????????????????# #??#""" #? | | ????????????????????????# """ """ #??#"Y #? | | ????????????????????????# """ """ #??#""" #? | | ????????????????????????# """ """ #??# #? | | ????????????????????????#############??##########? | | ?????????????????????????????????????????????????? | | ?????????????????????????????????????????????????? | | | | | +----------------------------------------------------+ Best States ------------- Heat Dissipation 35 Energy Generation 14 Energy Capacity 250 Matter Stores 300 Matter Capacity 300 Sight Range 16 Terrain Scan Density 10 Armor Coverage 800 Core Shielding 20 Evasion (%) 55 Recoil Reduction 2 Offensive Hacking 10 Item Schematics ----------------- None Robot Schematics ------------------ None Fabricated ------------ Nothing Alien Tech Used ----------------- None Achievements -------------- \\IAMDERELICT Challenges ------------ None Game ------ Seed ThiefOpticalMagmablaster Manual? 0 Play Time 00:25:17 Cumulative 72.0 hours Start 2024.02.26 @ 17:52:24 End 2024.02.27 @ 19:55:57 Sessions 5 Manual Loads 0 Difficulty Rogue Special Mode None Game No. 51 Rogue 51 Adventurer 0 Explorer 0 Win Type - Total 3 Types 2/0/0/1/0/0/0/0/0 Lore% 62 Gallery% 58 Achievement% 52 Wizard Run 0 Options --------- Layout 0 ASCII 0 Keyboard 1 Movement Numpad Keybinds 0 Fullscreen 1 Font 18/SmallcapsGlow Map View 76x50 Zoom Use 0% Tactical HUD 1 Map Filters NONE Filters NONE Steam 1 RUN: 95a52c0c-e642-4a1c-a0f7-65775c425a20